Workbook

Sheet COST DATA and CHART
B1: COST ANALYSIS - PARETO
B2: Pareto Chart for Cumulative Percent of Annual Costs across all Cost Centres is in cells B2 through E3.
B4: COST ANALYSIS
B5: Cost Centre | C5: Annual Cost | D5: Percent of Total | E5: Cumulative Percent
B6: Parts and materials | C6: £1,325,000.00 | D6: =IFERROR(Data[[#This Row],[Annual Cost ]]/SUM(Data[[Annual Cost ]]), "") -> 31.17% | E6: =IFERROR(SUM(INDEX(Data[Percent of Total],1):Data[[#This Row],[Percent of Total]]), "") -> 31.17%
B7: Manufacturing equipment | C7: £900,500.00 | D7: =IFERROR(Data[[#This Row],[Annual Cost ]]/SUM(Data[[Annual Cost ]]), "") -> 21.19% | E7: =IFERROR(SUM(INDEX(Data[Percent of Total],1):Data[[#This Row],[Percent of Total]]), "") -> 52.36%
B8: Salaries | C8: £575,000.00 | D8: =IFERROR(Data[[#This Row],[Annual Cost ]]/SUM(Data[[Annual Cost ]]), "") -> 13.53% | E8: =IFERROR(SUM(INDEX(Data[Percent of Total],1):Data[[#This Row],[Percent of Total]]), "") -> 65.89%
B9: Maintenance | C9: £395,000.00 | D9: =IFERROR(Data[[#This Row],[Annual Cost ]]/SUM(Data[[Annual Cost ]]), "") -> 9.29% | E9: =IFERROR(SUM(INDEX(Data[Percent of Total],1):Data[[#This Row],[Percent of Total]]), "") -> 75.18%
B10: Office lease | C10: £295,000.00 | D10: =IFERROR(Data[[#This Row],[Annual Cost ]]/SUM(Data[[Annual Cost ]]), "") -> 6.94% | E10: =IFERROR(SUM(INDEX(Data[Percent of Total],1):Data[[#This Row],[Percent of Total]]), "") -> 82.12%
B11: Warehouse lease | C11: £250,000.00 | D11: =IFERROR(Data[[#This Row],[Annual Cost ]]/SUM(Data[[Annual Cost ]]), "") -> 5.88% | E11: =IFERROR(SUM(INDEX(Data[Percent of Total],1):Data[[#This Row],[Percent of Total]]), "") -> 88.00%
B12: Insurance | C12: £180,000.00 | D12: =IFERROR(Data[[#This Row],[Annual Cost ]]/SUM(Data[[Annual Cost ]]), "") -> 4.23% | E12: =IFERROR(SUM(INDEX(Data[Percent of Total],1):Data[[#This Row],[Percent of Total]]), "") -> 92.24%
B13: Benefits and pensions | C13: £130,000.00 | D13: =IFERROR(Data[[#This Row],[Annual Cost ]]/SUM(Data[[Annual Cost ]]), "") -> 3.06% | E13: =IFERROR(SUM(INDEX(Data[Percent of Total],1):Data[[#This Row],[Percent of Total]]), "") -> 95.29%
B14: Vehicles | C14: £125,000.00 | D14: =IFERROR(Data[[#This Row],[Annual Cost ]]/SUM(Data[[Annual Cost ]]), "") -> 2.94% | E14: =IFERROR(SUM(INDEX(Data[Percent of Total],1):Data[[#This Row],[Percent of Total]]), "") -> 98.24%
B15: Research | C15: £75,000.00 | D15: =IFERROR(Data[[#This Row],[Annual Cost ]]/SUM(Data[[Annual Cost ]]), "") -> 1.76% | E15: =IFERROR(SUM(INDEX(Data[Percent of Total],1):Data[[#This Row],[Percent of Total]]), "") -> 100.00%
B16: Total | C16: =SUBTOTAL(109,Data[[Annual Cost ]]) -> £4,250,500.00 | D16: =SUBTOTAL(109,Data[Percent of Total]) -> 100.00%
